Cogmind - Beta 16 @@@ ROGUE MODE // 2025.10.27 @ 20:22:19 Player: Tereza Result: Destroyed by Y-45 Defender with Beam Rifle Performance ------------- Evolutions (1) 500 Regions Visited (3) 600 Robots Destroyed (105) 525 Value Destroyed (2329) 2329 Prototype IDs (5) 100 Alien Tech Used (0) 0 Bonus (68) 68 TOTAL SCORE: 4122 Bonus ------- High Alert Combat Kills 68 Cogmind --------- Core Integrity 0/400 Matter 254/300 Energy 249/275 System Corruption 6% Temperature Cool (63) Movement Treading (155) Location -9/Storage Parts ------- > --- POWER (1) -------- Deuterium Engine > --- PROPULSION (3) --- Light Treads Improved Treads Advanced Treads > --- UTILITY (3) ------ Heat Sink High-capacity Storage Unit > --- WEAPON (2) ------- Beam Rifle Beam Rifle > --- INVENTORY (20) --- Deuterium Engine Improved Treads Advanced Treads Advanced Treads Advanced Treads Cryofiber Web Cryofiber Web Heat Sink Small Battery (100) Improved Signal Interpreter Seismic Detector Hacking Suite Drone Bay (2/2) Improved Medium Laser Improved Medium Laser Improved Medium Laser Advanced Beam Cannon Rocket Launcher Datajack Plasma Cutter Peak State ------------ > --- POWER ------------ Deuterium Engine > --- PROPULSION ------- Light Treads Improved Treads Advanced Treads > --- UTILITY ---------- Heat Sink High-capacity Storage Unit Shield Generator > --- WEAPON ----------- Beam Rifle Advanced Beam Cannon > --- INVENTORY -------- Deuterium Engine Improved Treads Advanced Treads Advanced Treads Advanced Treads Cryofiber Web Cryofiber Web Heat Sink Small Battery Improved Signal Interpreter Seismic Detector Hacking Suite Drone Bay Beam Rifle Improved Medium Laser Improved Medium Laser Improved Medium Laser Rocket Launcher Datajack Plasma Cutter [Rating: 23] Favorites ----------- Power Light Ion Engine Engine Light Ion Engine Power Core Light Nuclear Core Propulsion Light Treads Treads Light Treads Utility Seismic Detector Device Seismic Detector Storage High-capacity Storage Unit Weapon Beam Rifle Energy Gun Beam Rifle Energy Cannon Advanced Beam Cannon Ballistic Gun Light Assault Rifle Special Weapon Plasma Cutter Special Melee Weapon Datajack Build | -11 -10 -9 -9 ------- Run | Yrd Mat Mat Sto Slots Evolved 2 | . . 2 . Power . | . . . . Propulsion 1 | . . 1 . Utility 1 | . . 1 . Weapon . | . . . . Parts Attached 49 | 7 9 24 9 Power 4 | 1 . 3 . Engine 3 | 1 . 2 . Core 1 | . . 1 . Reactor . | . . . . Propulsion 18 | 2 2 10 4 Treads 18 | 2 2 10 4 Leg . | . . . . Wheel . | . . . . Hover . | . . . . Flight . | . . . . Utility 10 | 2 3 3 2 Device 7 | 1 1 3 2 Storage 3 | 1 2 . . Processor . | . . . . Hackware . | . . . . Protection . | . . . . Artifact . | . . . . Weapon 17 | 2 4 8 3 Energy Gun 7 | . . 6 1 Energy Cannon 1 | . . . 1 Ballistic Gun 7 | 2 3 2 . Ballistic Cannon . | . . . . Launcher . | . . . . Special Weapon 1 | . . . 1 Impact Weapon . | . . . . Slashing Weapon . | . . . . Piercing Weapon . | . . . . Special Melee Weapon 1 | . 1 . . Unidentified Prototypes 1 | . . 1 . Parts Lost 7 | . . 5 2 Power 1 | . . 1 . Propulsion 2 | . . 1 1 Utility 3 | . . 2 1 Weapon 1 | . . 1 . Highest Loss Streak 2 | . . 2 1 To Critical Strikes . | . . . . Average Backups 16 | 2 10 19 19 Power . | . 1 . 1 Propulsion 4 | 1 3 4 4 Utility 5 | . 2 5 7 Weapon 4 | . 3 5 5 Tool/Special . | . . . . Unused Backups 34 | . 3 14 17 Power 3 | . . 2 1 Propulsion 7 | . 2 1 4 Utility 12 | . . 5 7 Weapon 12 | . 1 6 5 Tool/Special . | . . . . Average Slot Usage (%) 99 | . 100 99 99 Engine 10 | . 14 8 11 Core 1 | . . 2 . Treads 31 | . 28 32 32 Device 19 | . 14 21 21 Storage 11 | . 14 11 11 Energy Gun 14 | . . 19 21 Ballistic Gun 8 | . 27 2 . Peak Build Rating 23 | 7 10 20 23 Average Rating 15 | 5 9 16 21 On Entrance 9 | . 7 10 19 Avg Prop Armor Cover (%) . | . . . . Naked Turns . | . . . . Heaviest Build 58 | 12 48 57 58 Greatest Support 66 | 40 40 66 66 Greatest Overweight (x) 3 | 3 1 1 1 Average Overweight (x) . | . . . . Largest Inventory Capacity 20 | 8 20 20 20 Average Capacity 18 | 7 13 20 20 Most Carried 20 | 5 15 20 20 Average Carried 17 | 3 10 19 19 Final Capacity 20 | 8 20 20 20 Final Carried 20 | 4 15 19 20 Class Distribution -------------------- 68% | Mutant 31% | Scavenger-Mutant Dominant Class ---------------- Mutant | -10/Materials Mutant | -9/Materials Mutant | -9/Storage Resources | -11 -10 -9 -9 ----------- Run | Yrd Mat Mat Sto Matter Collected 1618 | 268 204 980 166 Remotely . | . . . . Salvage Created 3710 | 15 292 2230 1173 Parts 209 | 4 30 131 44 Haulers Intercepted 12 | . 2 6 4 Recyclers Shooed 3 | 1 . 2 . Parts Field Recycled . | . . . . Retrieved Matter . | . . . . Parts Self-Destructed . | . . . . Prevented . | . . . . Parts Restored . | . . . . Kills | -11 -10 -9 -9 ------- Run | Yrd Mat Mat Sto Combat Hostiles Destroyed 74 | . 12 44 18 Guns 69 | . 12 41 16 Classes Destroyed 11 | 1 4 6 . Worker 6 | . 1 4 1 Builder 2 | . . 2 . Tunneler 1 | 1 . . . Hauler 12 | . 2 6 4 Recycler 3 | . . 2 1 Operator 3 | . 1 2 . Watcher 4 | . . 3 1 Swarmer 26 | . 12 14 . Grunt 28 | . . 19 9 Duelist 2 | . . 2 . Sentry 18 | . . 9 9 Best Kill Streak 6 | 1 6 6 3 Combat Bots Only 6 | . 6 5 3 Max Kills in Single Turn 2 | 1 1 2 2 Gunslinging 1 | . . 1 . Exploded . | . . . . Melee . | . . . . Uniques/NPCs Destroyed . | . . . . Combat | -11 -10 -9 -9 -------- Run | Yrd Mat Mat Sto Hostile Shots Fired 323 | . 63 180 80 Missed 107 | . 20 66 21 Hits 216 | . 43 114 59 Melee 2 | . . 2 . Projectile 214 | . 43 112 59 Critical Strikes 3 | . . . 3 Damage Taken 2492 | . 376 1315 801 Core 496 | . 85 227 184 Absorbed by Shields 102 | . . . 102 Regen/Repaired (Parts) 17 | . . 17 . Core Remaining (%) 83 | 100 66 . . Volleys Fired 265 | 2 52 144 67 Largest 2 | 2 2 2 2 Hottest 112 | 40 43 112 112 Shots Fired 528 | 4 104 289 131 Gun 528 | 4 104 289 131 Cannon . | . . . . Launcher . | . . . . Special . | . . . . Kinetic 152 | 4 104 44 . Thermal 376 | . . 245 131 Explosive . | . . . . Electromagnetic . | . . . . Robot Hit Streak 31 | 1 6 14 31 Robot Miss Streak 5 | 1 5 4 2 Penetration Max . | . . . . Secondary Targets 6 | . 1 3 2 Max Gunslinging Chain 1 | . 1 1 1 Shots Hit Robots 359 | 2 60 189 108 Core Hits 142 | 1 24 79 38 Critical Kills 1 | . . 1 . Critical Parts Destroyed . | . . . . Critical Strikes 31 | . . 17 14 Burn 30 | . . 16 14 Destroy 1 | . . 1 . Melee Attacks . | . . . . Impact . | . . . . Slashing . | . . . . Piercing . | . . . . Sneak Attacks . | . . . . Combat Hostiles . | . . . . Follow-up Attacks . | . . . . Damage Inflicted 5594 | 20 794 3022 1758 Guns 5572 | 20 789 3022 1741 Cannons . | . . . . Explosions . | . . . . Melee . | . . . . Ramming 22 | . 5 . 17 Kinetic 1279 | 20 789 470 . Thermal 4293 | . . 2552 1741 Explosive . | . . . . Electromagnetic . | . . . . Impact . | . . . . Slashing . | . . . . Piercing . | . . . . Highest Corruption 6 | . 2 6 6 Average Corruption 4 | . 2 4 6 Corruption Purged . | . . . . Corruption Blocked . | . . . . Effects 98 | . 10 56 32 Message Errors 31 | . 3 14 14 Matter Fused 12 | . 2 5 5 Heat Flow Errors 10 | . 2 8 . Energy Discharges 14 | . 1 8 5 Parts Rejected 1 | . . . 1 Data Loss (minor) 14 | . 1 10 3 Data Loss (major) 5 | . 1 4 . Misfires 4 | . . 4 . Alerts 1 | . . . 1 Weapon Failures 6 | . . 3 3 Overload Shots . | . . . . Overflow Damage . | . . . . Projectiles . | . . . . Explosions . | . . . . Melee . | . . . . Knockbacks . | . . . . Impact . | . . . . Kinetic . | . . . . Secondary . | . . . . Self-Inflicted Damage . | . . . . Shots . | . . . . Rammed 2 | . 1 . 1 Targets Rammed 2 | . 1 . 1 Kicked . | . . . . Crushed . | . . . . Highest Temperature 469 | . 273 469 154 Average Temperature 48 | . 38 56 38 Received Heat Transfer 640 | . . 345 295 Siege Activations . | . . . . Martial Activations . | . . . . Shielding Activations . | . . . . Robots Disrupted . | . . . . Combat Hostiles . | . . . . Robots Corrupted . | . . . . Combat Hostiles . | . . . . Parts Fried . | . . . . Impact Corruptions . | . . . . Robots Melted 6 | . . 3 3 Combat Hostiles 5 | . . 3 2 Parts Melted 30 | . . 17 13 Heat Transferred 12728 | . . 7437 5291 Parts Sabotaged . | . . . . Parts Stolen . | . . . . Parts Stripped . | . . . . Power Chain Reactions . | . . . . Alert | -11 -10 -9 -9 ------- Run | Yrd Mat Mat Sto Maximum Alert Level 2 | . . 2 1 Low Security (%) 59 | 100 100 57 11 Level 1 36 | . . 34 88 Level 2 4 | . . 7 . Level 3 . | . . . . Level 4 . | . . . . Level 5 . | . . . . High Security . | . . . . Max Security . | . . . . Peak Influence 525 | 5 163 525 331 Initial 220 | . . 4 220 Average 157 | . 51 180 246 Influence Increases 2224 | 5 361 1293 565 Destroy 0b10 Robot/C 1480 | . 240 880 360 Destroy 0b10 Robot/NC 155 | 5 20 95 35 Destroy Leader 402 | . 44 228 130 Successful Hack 66 | . 26 20 20 Disable Machine 15 | . . . 15 Destroy Structure 16 | . 1 10 5 Lose Combat Pursuer 90 | . 30 60 . Influence Decreases 2199 | 5 349 783 1062 Entered New Map 310 | . . 8 302 Time Decay 1369 | 5 349 575 440 Lost Part 70 | . . 50 20 Purge Threat 450 | . . 150 300 Squads Dispatched 9 | . 1 5 3 Investigation 2 | . 1 1 . Extermination . | . . . . Reinforcement 7 | . . 4 3 Assault . | . . . . Garrison . | . . . . Intercept . | . . . . Searches Triggered . | . . . . Construction Impeded . | . . . . Haulers Reinforced . | . . . . Active Scanning Responses . | . . . . Cargo Convoy Interrupts . | . . . . Stealth | -11 -10 -9 -9 --------- Run | Yrd Mat Mat Sto Distress Signals 9 | . 1 6 2 Communications Jammed . | . . . . Distress Signals . | . . . . Times Spotted 111 | . 20 68 23 Peak Tracking Total 8 | . 6 8 4 Tactical Retreats 5 | . 1 4 . Traps | -11 -10 -9 -9 ------- Run | Yrd Mat Mat Sto Traps Triggered 7 | . 2 2 3 Indirectly . | . . . . Trap Hack Attempts 61 | . 2 59 . Triggered . | . . . . Disarmed 1 | . 1 . . Reprogrammed 2 | . . 2 . Reused . | . . . . Traps Extracted . | . . . . Installed . | . . . . Triggered . | . . . . Machines | -11 -10 -9 -9 ---------- Run | Yrd Mat Mat Sto Machines Disabled 1 | . . . 1 Max in Single Turn 1 | . . . 1 Machines Repaired . | . . . . Machines Dismantled 1 | . . . 1 Machines Sabotaged . | . . . . Overloaded Fab Kills . | . . . . Hacking | -11 -10 -9 -9 --------- Run | Yrd Mat Mat Sto Machines Accessed 29 | . 10 11 8 Terminals 22 | . 8 7 7 Fabricators . | . . . . Repair Stations 1 | . . 1 . Recycling Units 4 | . 2 1 1 Scanalyzers 2 | . . 2 . Garrison Access . | . . . . Total Hacks 73 | . 26 29 18 Successful 44 | . 15 18 11 Failed 28 | . 11 10 7 Catastrophic 3 | . 1 2 . Database Lockouts 1 | . . 1 . Manual 34 | . 12 10 12 Terminals 60 | . 24 20 16 Fabricators . | . . . . Repair Stations 3 | . . 3 . Recycling Units 5 | . 2 1 2 Scanalyzers 5 | . . 5 . Garrison Access . | . . . . Terminal Hacks 23 | . 10 8 5 Robot Analysis 5 | . 3 2 . Prototype ID Bank 2 | . 2 . . Open Door 2 | . . . 2 Branch Access Points 1 | . . 1 . Repair Station Index 1 | . 1 . . Alert Level 2 | . 1 1 . Unreport Threat 3 | . . 1 2 Locate Traps 4 | . 2 1 1 Hauler Manifests 3 | . 1 2 . Fabricator Hacks . | . . . . Repair Station Hacks 2 | . . 2 . Scan Component 1 | . . 1 . Repair 1 | . . 1 . Recycling Unit Hacks 4 | . 2 1 1 Report Inventory 4 | . 2 1 1 Scanalyzer 4 | . . 4 . Retrieve Study 4 | . . 4 . Garrison Access Hacks . | . . . . Unauthorized Hacks 11 | . 3 3 5 Terminals 10 | . 3 3 4 Track 2 | . . . 2 Assimilate 1 | . . 1 . Botnet 4 | . 2 1 1 Disrupt 1 | . . . 1 Operators 2 | . 1 1 . Fabricators . | . . . . Repair Stations . | . . . . Recycling Units 1 | . . . 1 Mask 1 | . . . 1 Scanalyzers . | . . . . Garrison Access . | . . . . Data Cores Recovered 2 | . 1 1 . Used 1 | . . 1 . Hacking Detections 21 | . 8 7 6 Full Trace Events 2 | . 1 1 . Feedback Events . | . . . . Feedback Blocked . | . . . . Robot Schematics Acquired . | . . . . Robots Built . | . . . . Authchips . | . . . . Time . | . . . . Total Robot Build Rating . | . . . . Part Schematics Acquired . | . . . . Parts Built . | . . . . Authchips . | . . . . Time . | . . . . Total Part Build Rating . | . . . . Part Studies Acquired 3 | . . 3 . Parts Repaired 1 | . . 1 . Time 26 | . . 26 . Parts Recycled . | . . . . Recycled Matter . | . . . . Retrieved Matter . | . . . . Retrieved Components . | . . . . Parts Scanalyzed . | . . . . Part Schematics Acquired . | . . . . Parts Damaged . | . . . . Bothacking | -11 -10 -9 -9 ------------ Run | Yrd Mat Mat Sto Used RIF Installer . | . . . . Robots Hacked . | . . . . Non-combat . | . . . . Combat . | . . . . Robot Hacks Applied . | . . . . Relay Couplers Released . | . . . . Fabnet Peak Effective % . | . . . . Robots Rewired . | . . . . Allies Hacked . | . . . . Hacks Repelled . | . . . . Allies | -11 -10 -9 -9 -------- Run | Yrd Mat Mat Sto Total Allies . | . . . . Largest Group . | . . . . Highest-Rated Group . | . . . . Highest-Rated Ally . | . . . . Total Orders . | . . . . Ally Attacks . | . . . . Total Damage . | . . . . Kills . | . . . . Allies Corrupted . | . . . . Allies Melted . | . . . . Intel | -11 -10 -9 -9 ------- Run | Yrd Mat Mat Sto Active Infowar (turns) 4925 | 20 1386 2808 711 Seismic 4925 | 20 1386 2808 711 Robot Analysis Total 5 | . 3 2 . Derelict Logs Recovered . | . . . . Drone Launches . | . . . . Drone Recoveries . | . . . . Exploration | -11 -10 -9 -9 ------------- Run | Yrd Mat Mat Sto Turns Passed 5402 | 84 1386 2850 1082 Spaces Moved 2496 | 41 632 1345 478 Core 6 | 6 . . . Treads 2490 | 35 632 1345 478 Legs . | . . . . Wheels . | . . . . Hover . | . . . . Flight . | . . . . Fastest Speed 50 | 50 160 160 155 Average Speed 166 | 157 189 160 155 Slowest Speed 240 | 200 240 240 212 Overloaded Moves . | . . . . Propulsion Burnouts . | . . . . Robots Hopped . | . . . . Potential Cave-ins . | . . . . Cave-ins Triggered . | . . . . Exploration Rate (%) 68 | 4 98 94 77 Regions Visited 3 Branch Regions 1 Pre-discovered Areas . | . . . . Known Exits Taken 1 | . . 1 . Unknown Exits Taken 2 | 1 1 . . Scrap Searched . | . . . . Spaces Dug . | . . . . Terrain Destroyed . | . . . . Melee . | . . . . Projectile . | . . . . AOE . | . . . . Terrain Rammed . | . . . . Walls Destroyed . | . . . . Machines Disabled . | . . . . Actions | -11 -10 -9 -9 --------- Run | Yrd Mat Mat Sto Total 3231 | 54 725 1789 663 Wait 224 | . 6 138 80 Move 2493 | 40 631 1344 478 Hop . | . . . . Pick Up 57 | 5 14 34 4 Fast Attach 10 | 6 . 2 2 Attach 11 | 1 1 7 2 Detach . | . . . . Swap 45 | . 9 21 15 Drop 55 | . 9 40 6 Fire 265 | 2 52 144 67 Melee . | . . . . Ram . | . . . . Kick . | . . . . Crush 2 | . 1 . 1 Escape Stasis . | . . . . Rewire . | . . . . Trap 61 | . 2 59 . Miscellaneous 8 | . . . 8 Route ------- -11/Scrapyard -10/Materials (discovered 5 exits: *Mat x3 / [*Min] / [*Sub]) -9/Materials (discovered 6 exits: [*Mat x3] / *Min / *Sto x2) -9/Storage (discovered 1 exit: [*Mat]) History --------- Turn | Location | Event 21 | -11/Scrapyard | Discovered new exit (range 13) 85 | -11/Scrapyard | Entered Materials 323 | -10/Materials | Build established: Mutant 343 | -10/Materials | Discovered new exit (range 13) 681 | -10/Materials | Build established: Scavenger-Mutant 731 | -10/Materials | Discovered new exit (range 15) 865 | -10/Materials | Discovered new exit (range 6) 865 | -10/Materials | Discovered new exit (range 10) 1168 | -10/Materials | Discovered new exit (range 7) 1201 | -10/Materials | Build established: Mutant 1471 | -10/Materials | Entered another Materials area 1471 | -9/Materials | Evolved 2 slots: Propulsion x1, Utility x1 1709 | -9/Materials | Discovered new exit (range 7) 2139 | -9/Materials | Identified exit to Mines 2139 | -9/Materials | Identified exit to Storage 2168 | -9/Materials | Discovered new exit (range 9) 2467 | -9/Materials | Build established: Scavenger-Mutant 2901 | -9/Materials | Build established: Mutant 2948 | -9/Materials | Discovered new exit (range 16) 3406 | -9/Materials | Build established: Scavenger-Mutant 3667 | -9/Materials | Repaired Seismic Detector 4107 | -9/Materials | Build established: Mutant 4141 | -9/Materials | Discovered new exit (range 16) 4231 | -9/Materials | Core integrity fell below 50% 4314 | -9/Materials | Central database locked down 4321 | -9/Materials | Entered Storage 4501 | -9/Storage | Core integrity fell below 20% 5057 | -9/Storage | Discovered new exit (range 5) 5403 | -9/Storage | Destroyed by Y-45 Defender with Beam Rifle Last Messages --------------- 05297_ Dropped Lgt. Treads+. 05311_ &4>#3H&ARTVUXO2FBQKXL 05311_ Connecting with Terminal... >>Alert(Purge) Purged threat record, alert level lowered. >>Alert(Purge) Purged threat record, alert level lowered. 05344_ System corrupted: Energy discharge (-57). 05359_ Triggered EMP Trap. 05359_ A bubble of electromagnetic force engulfs the area. 05380_ Connecting with Terminal... 05385_ ALERT: Hostiles spotted, dispatching reinforcements to Terminal S010. 05394_ Y-45 Defender suffers critical hit (Burn). 05395_ System corrupted: Shield Generator rejected. 05397_ Imp. Ion Engine melted. 05397_ Y-45 Defender destroyed. Map ----- +----------------------------------------------------+ | | | | | | | | | | | | | | | | | | | | | | | ?????????????????????????????? | | ?????????????????????????????? | | ????########################## | | ????# | | ????# ^ | | ????# [ | | ????# ########## ###########+# | | ????# #????????# #?????# ==* | | ????# #????????# #?????# | | ????# #???????# #????# | | ????# #???????# +????# """ | | ????# #???????# #????# """ | | ????# #???????#####????# """ | | ????# #????????????????# """ | | ????#@#????????????????# | | ????# #????????????????# ##### | | ?####/##???????????????##????? | | # Y=#?????????????????????? | | # T #?????????????????????? | | # #?????????????????????? | | # """ #?????????????????????? | | # """ +?????????????????????? | | # """ #?????????????????????? | | # #?????????????????????? | | ## #####?????????????????????? | | ?##??????????????????????????? | | ?????????????????????????????? | | ?????????????????????????????? | | ?????????????????????????????? | | ?????????????????????????????? | | ?????????????????????????????? | | ?????????????????????????????? | | ?????????????????????????????? | | ?????????????????????????????? | | ?????????????????????????????? | | ?????????????????????????????# | | ?????????????????????????#### | | ?????????????????????????# | | ?????????????????????????# " | +----------------------------------------------------+ Best States ------------- Heat Dissipation 38 Energy Generation 14 Energy Capacity 275 Matter Stores 300 Matter Capacity 300 Sight Range 16 Terrain Scan Density 10 Evasion (%) 40 Recoil Reduction 3 Item Schematics ----------------- None Robot Schematics ------------------ None Fabricated ------------ Nothing Repaired ---------- Seismic Detector | 15% | -9/Materials Studied --------- Imp. Treads | -9/Materials | Hacked Lgt. Treads | -9/Materials | Hacked Beam Rifle | -9/Materials | Hacked Alien Tech Used ----------------- None Achievements -------------- None Challenges ------------ None Game ------ Seed ShiftProjectileTreads Manual? 0 Play Time 00:31:15 Cumulative 216.0 hours Start 2025.10.27 @ 19:51:43 End 2025.10.27 @ 20:22:19 Sessions 1 Manual Loads 0 Difficulty Rogue Special Mode None Game No. 266 Rogue 266 Adventurer 0 Explorer 0 Win Type - Total 3 Types 3/0/0/0/0/0/0/0/0/0 Lore% 74 Gallery% 57 Achievement% 39 Wizard Run 0 Options --------- Layout 1 ASCII 0 Keyboard 1 Movement Numpad Keybinds 0 Fullscreen 1 Font 24/Smallcaps Map View 50x35 Zoom Use 0% Tactical HUD 1 Map Filters NONE Filters NONE Steam 1 RUN: 5c56f836-064a-42c1-a36a-c13df99dc9bf